Cogmind - Beta 16 @@@ ROGUE MODE // 2025.12.18 @ 11:25:43 Player: newo Result: Core destroyed Performance ------------- Evolutions (0) 0 Regions Visited (1) 200 Robots Destroyed (17) 85 Value Destroyed (423) 423 Prototype IDs (0) 0 Alien Tech Used (0) 0 Bonus (0) 0 TOTAL SCORE: 708 Bonus ------- None Cogmind --------- Core Integrity 0/250 Matter 173/300 Energy 31/100 System Corruption 0% Temperature Critical (815) Movement Core (1400) Ox27 Location -10/Materials Parts ------- > --- POWER (1) -------- (None) > --- PROPULSION (2) --- (None) > --- UTILITY (2) ------ Huge Storage Unit Hacking Suite > --- WEAPON (2) ------- Small Laser Particle Gun > --- INVENTORY (25) --- Ion Engine Improved Terrain Scanner Light Armor Plating Medium Laser Medium Laser Small Laser Peak State ------------ > --- POWER ------------ Light Nuclear Core > --- PROPULSION ------- Light Treads Light Treads > --- UTILITY ---------- Huge Storage Unit Hacking Suite > --- WEAPON ----------- Medium Laser Particle Gun > --- INVENTORY -------- Ion Engine Improved Terrain Scanner Light Armor Plating Medium Laser Small Laser Small Laser [Rating: 12] Favorites ----------- Power Ion Engine Engine Ion Engine Power Core Light Nuclear Core Propulsion Light Treads Treads Light Treads Hover Unit Backup Propulsion I Utility Small Storage Unit Device Improved Terrain Scanner Storage Small Storage Unit Hackware Hacking Suite Protection Light Armor Plating Weapon Medium Laser Energy Gun Medium Laser Build | -11 -10 ------- Run | Yrd Mat Slots Evolved . | . . Power . | . . Propulsion . | . . Utility . | . . Weapon . | . . Parts Attached 17 | 7 10 Power 3 | 1 2 Engine 2 | 1 1 Core 1 | . 1 Reactor . | . . Propulsion 2 | 2 . Treads 2 | 2 . Leg . | . . Wheel . | . . Hover . | . . Flight . | . . Utility 6 | 2 4 Device 1 | 1 . Storage 3 | 1 2 Processor . | . . Hackware 1 | . 1 Protection 1 | . 1 Artifact . | . . Weapon 6 | 2 4 Energy Gun 6 | 2 4 Energy Cannon . | . . Ballistic Gun . | . . Ballistic Cannon . | . . Launcher . | . . Special Weapon . | . . Impact Weapon . | . . Slashing Weapon . | . . Piercing Weapon . | . . Special Melee Weapon . | . . Unidentified Prototypes . | . . Parts Lost 3 | . 3 Power 1 | . 1 Propulsion 2 | . 2 Utility . | . . Weapon . | . . Highest Loss Streak 3 | . 3 To Critical Strikes . | . . Average Backups 3 | . 4 Power . | . . Propulsion . | . . Utility 1 | . 1 Weapon 2 | . 2 Tool/Special . | . . Unused Backups . | . . Power . | . . Propulsion . | . . Utility . | . . Weapon . | . . Tool/Special . | . . Average Slot Usage (%) 99 | . 99 Engine 7 | . 7 Core 5 | . 5 Treads 26 | . 26 Hover 1 | . 1 Device 6 | . 6 Storage 14 | . 14 Hackware 1 | . 1 Protection 5 | . 5 Energy Gun 28 | . 28 Peak Build Rating 12 | 9 12 Average Rating 9 | 7 9 On Entrance 4 | . 9 Avg Prop Armor Cover (%) 9 | . 9 Naked Turns . | . . Heaviest Build 93 | 14 93 Greatest Support 40 | 40 40 Greatest Overweight (x) 4 | 1 4 Average Overweight (x) . | . . Largest Inventory Capacity 25 | 8 25 Average Capacity 10 | 7 11 Most Carried 7 | 3 7 Average Carried 3 | . 4 Final Capacity 25 | 8 25 Final Carried 6 | 1 6 Class Distribution -------------------- 100% | Mutant Dominant Class ---------------- Mutant | -10/Materials Resources | -11 -10 ----------- Run | Yrd Mat Matter Collected 386 | 214 172 Remotely . | . . Salvage Created 584 | 11 573 Parts 28 | 3 25 Haulers Intercepted 1 | . 1 Recyclers Shooed 1 | . 1 Parts Field Recycled . | . . Retrieved Matter . | . . Parts Self-Destructed . | . . Prevented . | . . Parts Restored . | . . Kills | -11 -10 ------- Run | Yrd Mat Combat Hostiles Destroyed 10 | . 10 Guns 8 | . 8 Classes Destroyed 6 | 1 5 Worker 3 | . 3 Tunneler 1 | 1 . Hauler 1 | . 1 Operator 1 | . 1 Watcher 1 | . 1 Grunt 10 | . 10 Best Kill Streak 4 | 1 4 Combat Bots Only 3 | . 3 Max Kills in Single Turn 2 | 1 2 Gunslinging . | . . Exploded . | . . Melee . | . . Uniques/NPCs Destroyed . | . . Combat | -11 -10 -------- Run | Yrd Mat Hostile Shots Fired 69 | . 69 Missed 12 | . 12 Hits 57 | . 57 Projectile 57 | . 57 Critical Strikes 1 | . 1 Damage Taken 851 | . 851 Core 269 | . 269 Absorbed by Shields . | . . Regen/Repaired (Parts) 91 | . 91 Core Remaining (%) 100 | 100 . Volleys Fired 67 | 2 65 Largest 2 | 2 2 Hottest 115 | 90 115 Shots Fired 125 | 4 121 Gun 125 | 4 121 Cannon . | . . Launcher . | . . Special . | . . Kinetic . | . . Thermal 125 | 4 121 Explosive . | . . Electromagnetic . | . . Robot Hit Streak 10 | 2 10 Robot Miss Streak 4 | 1 4 Penetration Max . | . . Secondary Targets . | . . Shots Hit Robots 69 | 2 67 Core Hits 30 | 1 29 Critical Kills . | . . Critical Parts Destroyed . | . . Critical Strikes 3 | . 3 Burn 3 | . 3 Melee Attacks . | . . Impact . | . . Slashing . | . . Piercing . | . . Sneak Attacks . | . . Combat Hostiles . | . . Follow-up Attacks . | . . Damage Inflicted 952 | 23 929 Guns 952 | 23 929 Cannons . | . . Explosions . | . . Melee . | . . Ramming . | . . Kinetic . | . . Thermal 952 | 23 929 Explosive . | . . Electromagnetic . | . . Impact . | . . Slashing . | . . Piercing . | . . Highest Corruption . | . . Average Corruption . | . . Corruption Purged . | . . Corruption Blocked . | . . Overload Shots . | . . Overflow Damage . | . . Projectiles . | . . Explosions . | . . Melee . | . . Knockbacks . | . . Impact . | . . Kinetic . | . . Secondary . | . . Self-Inflicted Damage . | . . Shots . | . . Rammed . | . . Targets Rammed . | . . Kicked . | . . Crushed . | . . Highest Temperature 815 | 60 815 Average Temperature 241 | 31 247 Received Heat Transfer 417 | . 417 Effects 33 | . 33 Shutdowns 5 | . 5 Energy Bleed 3 | . 3 Interference 2 | . 2 Matter Decay 4 | . 4 Short Circuit 6 | . 6 Damage (minor) 5 | . 5 Damage (major) 4 | . 4 Damage (core) 4 | . 4 Siege Activations . | . . Martial Activations . | . . Shielding Activations . | . . Robots Disrupted . | . . Combat Hostiles . | . . Robots Corrupted . | . . Combat Hostiles . | . . Parts Fried . | . . Impact Corruptions . | . . Robots Melted 2 | . 2 Combat Hostiles 2 | . 2 Parts Melted 8 | . 8 Heat Transferred 2912 | 62 2850 Parts Sabotaged . | . . Parts Stolen . | . . Parts Stripped . | . . Power Chain Reactions . | . . Alert | -11 -10 ------- Run | Yrd Mat Maximum Alert Level . | . . Low Security (%) 100 | 100 100 Level 1 . | . . Level 2 . | . . Level 3 . | . . Level 4 . | . . Level 5 . | . . High Security . | . . Max Security . | . . Peak Influence 111 | 5 111 Initial . | . . Average 31 | . 40 Influence Increases 318 | 5 313 Destroy 0b10 Robot/C 200 | . 200 Destroy 0b10 Robot/NC 35 | 5 30 Destroy Leader 64 | . 64 Successful Hack 4 | . 4 Lose Combat Pursuer 15 | . 15 Influence Decreases 294 | 5 289 Time Decay 264 | 5 259 Lost Part 30 | . 30 Squads Dispatched 4 | . 4 Investigation 2 | . 2 Extermination . | . . Reinforcement 2 | . 2 Assault . | . . Garrison . | . . Intercept . | . . Searches Triggered . | . . Construction Impeded . | . . Haulers Reinforced . | . . Active Scanning Responses . | . . Cargo Convoy Interrupts . | . . Stealth | -11 -10 --------- Run | Yrd Mat Distress Signals 4 | . 4 Communications Jammed . | . . Distress Signals . | . . Times Spotted 18 | . 18 Peak Tracking Total 4 | . 4 Tactical Retreats 1 | . 1 Traps | -11 -10 ------- Run | Yrd Mat Traps Triggered 1 | . 1 Indirectly . | . . Trap Hack Attempts . | . . Triggered . | . . Disarmed 3 | . 3 Reprogrammed . | . . Reused . | . . Traps Extracted . | . . Installed . | . . Triggered . | . . Machines | -11 -10 ---------- Run | Yrd Mat Machines Disabled . | . . Max in Single Turn . | . . Machines Repaired . | . . Machines Dismantled . | . . Machines Sabotaged . | . . Overloaded Fab Kills . | . . Hacking | -11 -10 --------- Run | Yrd Mat Machines Accessed 2 | . 2 Terminals 1 | . 1 Fabricators . | . . Repair Stations 1 | . 1 Recycling Units . | . . Scanalyzers . | . . Garrison Access . | . . Total Hacks 6 | . 6 Successful 6 | . 6 Failed . | . . Catastrophic . | . . Database Lockouts . | . . Manual . | . . Terminals 3 | . 3 Fabricators . | . . Repair Stations 3 | . 3 Recycling Units . | . . Scanalyzers . | . . Garrison Access . | . . Terminal Hacks 3 | . 3 Alert Level 1 | . 1 Locate Traps 1 | . 1 Disarm Traps 1 | . 1 Fabricator Hacks . | . . Repair Station Hacks 3 | . 3 Scan Component 1 | . 1 Repair 1 | . 1 Refit 1 | . 1 Recycling Unit Hacks . | . . Scanalyzer . | . . Garrison Access Hacks . | . . Unauthorized Hacks . | . . Terminals . | . . Fabricators . | . . Repair Stations . | . . Recycling Units . | . . Scanalyzers . | . . Garrison Access . | . . Data Cores Recovered . | . . Used . | . . Hacking Detections 1 | . 1 Full Trace Events 1 | . 1 Feedback Events . | . . Feedback Blocked . | . . Robot Schematics Acquired . | . . Robots Built . | . . Authchips . | . . Time . | . . Total Robot Build Rating . | . . Part Schematics Acquired . | . . Parts Built . | . . Authchips . | . . Time . | . . Total Part Build Rating . | . . Part Studies Acquired . | . . Parts Repaired 1 | . 1 Time 36 | . 36 Parts Recycled . | . . Recycled Matter . | . . Retrieved Matter . | . . Retrieved Components . | . . Parts Scanalyzed . | . . Part Schematics Acquired . | . . Parts Damaged . | . . Bothacking | -11 -10 ------------ Run | Yrd Mat Used RIF Installer . | . . Robots Hacked . | . . Non-combat . | . . Combat . | . . Robot Hacks Applied . | . . Relay Couplers Released . | . . Fabnet Peak Effective % . | . . Robots Rewired . | . . Allies Hacked . | . . Hacks Repelled . | . . Allies | -11 -10 -------- Run | Yrd Mat Total Allies . | . . Largest Group . | . . Highest-Rated Group . | . . Highest-Rated Ally . | . . Total Orders . | . . Ally Attacks . | . . Total Damage . | . . Kills . | . . Allies Corrupted . | . . Allies Melted . | . . Intel | -11 -10 ------- Run | Yrd Mat Active Infowar (turns) 522 | 142 380 Terrain 522 | 142 380 Robot Analysis Total . | . . Derelict Logs Recovered . | . . Drone Launches . | . . Drone Recoveries . | . . Exploration | -11 -10 ------------- Run | Yrd Mat Turns Passed 1016 | 224 792 Spaces Moved 365 | 85 280 Core 5 | 5 . Treads 360 | 80 280 Legs . | . . Wheels . | . . Hover . | . . Flight . | . . Fastest Speed 50 | 50 160 Average Speed 189 | 154 200 Slowest Speed 480 | 160 480 Overloaded Moves . | . . Propulsion Burnouts . | . . Robots Hopped . | . . Potential Cave-ins . | . . Cave-ins Triggered . | . . Exploration Rate (%) 28 | 9 47 Regions Visited 1 Branch Regions . Pre-discovered Areas . | . . Known Exits Taken . | . . Unknown Exits Taken 1 | 1 . Scrap Searched . | . . Spaces Dug . | . . Terrain Destroyed . | . . Melee . | . . Projectile . | . . AOE . | . . Terrain Rammed . | . . Walls Destroyed . | . . Machines Disabled . | . . Actions | -11 -10 --------- Run | Yrd Mat Total 562 | 174 388 Wait 93 | 73 20 Move 364 | 84 280 Hop . | . . Pick Up 17 | 8 9 Fast Attach . | . . Attach 8 | 7 1 Detach . | . . Swap 9 | . 9 Drop 4 | . 4 Fire 67 | 2 65 Melee . | . . Ram . | . . Kick . | . . Crush . | . . Escape Stasis . | . . Rewire . | . . Trap . | . . Miscellaneous . | . . Route ------- -11/Scrapyard -10/Materials (discovered 1 exit: [*Min]) History --------- Turn | Location | Event 2 | -11/Scrapyard | Met Revision 17 26 | -11/Scrapyard | Discovered new exit (range 16) 225 | -11/Scrapyard | Entered Materials 316 | -10/Materials | Build established: Mutant 819 | -10/Materials | Discovered new exit (range 7) 981 | -10/Materials | Repaired Broken Lgt. Treads 1009 | -10/Materials | Core integrity fell below 50% 1016 | -10/Materials | Core integrity fell below 20% 1018 | -10/Materials | Core destroyed Last Messages --------------- Overheating: Short circuit. Broken Lgt. Treads destroyed. Overheating: Huge Storage Unit damaged (-426). R-06 Scavenger collects Ion Engine. Overheating: Energy bleed (-14). Overheating: Hacking Suite damaged (-3). Overheating: Backup Propulsion I damaged (-4). Overheating: Huge Storage Unit damaged (-62). Overheating: Sml. Laser damaged (-27). Overheating: Core damaged (-35). Broken Lgt. Nuclear Core destroyed. Overheating: Core damaged (-30). Overheating: Particle Gun damaged (-8). Backup Propulsion I destroyed. Overheating: Energy bleed (-7). Overheating: Core damaged (-40). Heat Sink melted. G-34 Mercenary destroyed. Overheating: Matter decay (-37). Overheating: Core damaged (-47). Map ----- +----------------------------------------------------+ | ??????????????????????????????????????????????? | | ??????????????????????????????????????????????? | | ??????????????????????????????????????????????? | | ??????????????????????????????????????????????? | | ??????????????????????????????????????????????? | | ??????????????????????????????????????????????? | | ???????????????????? ???????????????????????? | | ??????????????????? ???????????????????????? | | ???????????????????# ???????????????????????? | | ???????????????????# ???????????????????????? | | ???????????????????# #?????? ?????????????? | | ????????????? ? "?# #?????? ?????????????? | | ?????????????? T?# #?????? ?????????????? | | ???????????????? " # #?????? ?????????????? | | ????????????????? # #?????? ?????????????? | | ?????????????????? + #?????? ?????????????? | | ???????????????????# #?????? ?????????????? | | ??????????????????## ##????? ?########????? | | ??????????????????# #######+## ##+### | | ??????????????????# # | | ??????????????????# < # | | ??????????????????# # | | ??????????????????# ###### # ## # | | ??????????????????## ####### #?"!"!" ## # | | ??????????????###### # """ # #??!"!""## + | | ??????? % u% @/ "R" # #????###?# # | | ??????? ^ = # "=" # #????? ?## # | | ??????? %= # # #?????? # | | ????????^""""" ######## # #?????? # | | ????????????"" ????????# # #???????/ T | | ????????????""?????????# == # #???????# | | ???????????????????????# = # #???????# | | ???????????????????????# # #???????## # | | ???????????????????????# # #????????# # | | ???????????????????????# # #????????# # | | ???????????????????????# # #????????# # | | ????????????????????########## #???????## # | | ????????????????????# === # #????????# # | | ????????????????????# === + #???????## # | | ????????????????????# == # #????????# # | | ????????????????????# # #????????# # | | ????????????????????# ! # ########## # | | ????????????????????# # | | ????????????????????# # % | | ????????????????????# "T" # = | | ????????????????????# ####### ########## | | ????????????????????################ #????????? | | ?????????????????????????# # #????????? | | ?????????????????????????# # #?????#??? | | ?????????????????????????# # ########## | +----------------------------------------------------+ Best States ------------- Heat Dissipation 25 Energy Generation 14 Energy Capacity 250 Matter Stores 300 Matter Capacity 300 Sight Range 16 Terrain Scan Range 16 Terrain Scan Density 10 Armor Coverage 150 Evasion (%) 40 Recoil Reduction 2 Offensive Hacking 10 Item Schematics ----------------- None Robot Schematics ------------------ None Fabricated ------------ Nothing Repaired ---------- Lgt. Treads | 35% | -10/Materials | Broken Studied --------- None Alien Tech Used ----------------- None Achievements -------------- Fitting Room Part-time Mechanic Challenges ------------ None Game ------ Seed HardlightDrainedDesublimator Manual? 0 Play Time 00:11:13 Cumulative 2.4 hours Start 2025.12.18 @ 11:15:31 End 2025.12.18 @ 11:25:43 Sessions 1 Manual Loads 0 Difficulty Rogue Special Mode None Game No. 3 Rogue 1 Adventurer 0 Explorer 2 Win Type - Total 0 Types 0/0/0/0/0/0/0/0/0/0 Lore% 1 Gallery% 4 Achievement% 6 Wizard Run 0 Options --------- Layout 0 ASCII 0 Keyboard 0 Movement Mouse Keybinds 0 Fullscreen 1 Font 18/SmallcapsGlow Map View 38x25 Zoom Use 97% Tactical HUD 0 Map Filters NONE Filters NONE Steam 1 RUN: f191b0fa-33d2-4da8-86ed-f7ffb4832c31